[Event "Titled Tuesday Blitz August 16 Late 2022"]
[White "Swiercz, Dariusz"]
[Black "Fus, Jakub"]
[WhiteFideId "1126881"]
[BlackFideId "1193023"]
[WhiteElo "2627"]
[BlackElo "2220"]
[Result "1/2-1/2"]
[Round "08"]
[TimeControl "180+1"]
[Date "2022.08.16"]
[WhiteClock "0:00:30"]
[BlackClock "0:00:23"]

1. Nf3 {[%clk 0:03:00]}  d5 {[%clk 0:02:59]} 2. b3 {[%clk 0:03:01]}  Nf6 {[%clk 0:02:58]} 3. Bb2 {[%clk 0:03:01]}  Bf5 {[%clk 0:02:59]} 4. e3 {[%clk 0:03:01]}  e6 {[%clk 0:02:59]} 5. Nh4 {[%clk 0:03:01]}  Bg6 {[%clk 0:02:57]} 6. Nxg6 {[%clk 0:03:01]}  hxg6 {[%clk 0:02:58]} 7. g3 {[%clk 0:03:02]}  Nbd7 {[%clk 0:02:57]} 8. Bg2 {[%clk 0:03:03]}  Bd6 {[%clk 0:02:58]} 9. d3 {[%clk 0:03:03]}  a5 {[%clk 0:02:57]} 10. a3 {[%clk 0:03:04]}  Qe7 {[%clk 0:02:56]} 11. Nd2 {[%clk 0:03:04]}  e5 {[%clk 0:02:56]} 12. Qe2 {[%clk 0:03:03]}  c6 {[%clk 0:02:53]} 13. c4 {[%clk 0:03:01]}  g5 {[%clk 0:02:42]} 14. h3 {[%clk 0:02:57]}  Kf8 {[%clk 0:02:25]} 15. cxd5 {[%clk 0:02:45]}  cxd5 {[%clk 0:02:09]} 16. Nf3 {[%clk 0:02:45]}  g4 {[%clk 0:01:56]} 17. hxg4 {[%clk 0:02:46]}  Rxh1+ {[%clk 0:01:55]} 18. Bxh1 {[%clk 0:02:47]}  Nxg4 {[%clk 0:01:55]} 19. Nh4 {[%clk 0:02:47]}  Ngf6 {[%clk 0:01:52]} 20. Nf5 {[%clk 0:02:47]}  Qe6 {[%clk 0:01:53]} 21. Nxd6 {[%clk 0:02:46]}  Qxd6 {[%clk 0:01:53]} 22. Rc1 {[%clk 0:02:45]}  Nb8 {[%clk 0:01:37]} 23. Qc2 {[%clk 0:02:35]}  Nc6 {[%clk 0:01:36]} 24. Qc5 {[%clk 0:02:35]}  Qxc5 {[%clk 0:01:34]} 25. Rxc5 {[%clk 0:02:36]}  Rd8 {[%clk 0:01:34]} 26. Rb5 {[%clk 0:02:29]}  Rd7 {[%clk 0:01:34]} 27. f4 {[%clk 0:02:14]}  Ng4 {[%clk 0:01:14]} 28. Kd2 {[%clk 0:01:48]}  e4 {[%clk 0:01:09]} 29. Bg2 {[%clk 0:01:41]}  Nf2 {[%clk 0:01:02]} 30. Bf1 {[%clk 0:01:41]}  Nxd3 {[%clk 0:01:00]} 31. Bxd3 {[%clk 0:01:41]}  exd3 {[%clk 0:01:01]} 32. Kxd3 {[%clk 0:01:39]}  f6 {[%clk 0:01:01]} 33. Bc3 {[%clk 0:01:38]}  a4 {[%clk 0:00:59]} 34. bxa4 {[%clk 0:01:38]}  Ke7 {[%clk 0:00:58]} 35. a5 {[%clk 0:01:37]}  Kd6 {[%clk 0:00:58]} 36. g4 {[%clk 0:01:34]}  Kc7 {[%clk 0:00:55]} 37. Rb1 {[%clk 0:01:29]}  Kb8 {[%clk 0:00:35]} 38. a6 {[%clk 0:01:20]}  Ka7 {[%clk 0:00:35]} 39. Rxb7+ {[%clk 0:01:20]}  Rxb7 {[%clk 0:00:36]} 40. axb7 {[%clk 0:01:21]}  Kxb7 {[%clk 0:00:37]} 41. e4 {[%clk 0:01:14]}  Ne7 {[%clk 0:00:18]} 42. Bb4 {[%clk 0:01:14]}  Ng6 {[%clk 0:00:18]} 43. Ke3 {[%clk 0:01:12]}  dxe4 {[%clk 0:00:17]} 44. Kxe4 {[%clk 0:01:12]}  Nh4 {[%clk 0:00:17]} 45. Bf8 {[%clk 0:01:02]}  g6 {[%clk 0:00:17]} 46. Kd5 {[%clk 0:00:22]}  Ng2 {[%clk 0:00:14]} 47. Bd6 {[%clk 0:00:22]}  Ne3+ {[%clk 0:00:13]} 48. Ke6 {[%clk 0:00:22]}  Nxg4 {[%clk 0:00:14]} 49. Kf7 {[%clk 0:00:23]}  g5 {[%clk 0:00:13]} 50. f5 {[%clk 0:00:20]}  Ne3 {[%clk 0:00:13]} 51. Kxf6 {[%clk 0:00:20]}  Nxf5 {[%clk 0:00:13]} 52. Kxf5 {[%clk 0:00:20]}  g4 {[%clk 0:00:14]} 53. Kxg4 {[%clk 0:00:20]}  Ka8 {[%clk 0:00:14]} 54. Bb4 {[%clk 0:00:21]}  Kb7 {[%clk 0:00:15]} 55. Kf5 {[%clk 0:00:22]}  Ka8 {[%clk 0:00:16]} 56. Ke4 {[%clk 0:00:23]}  Kb7 {[%clk 0:00:17]} 57. Kd5 {[%clk 0:00:24]}  Ka8 {[%clk 0:00:17]} 58. Kc4 {[%clk 0:00:25]}  Kb7 {[%clk 0:00:18]} 59. Kb5 {[%clk 0:00:25]}  Ka8 {[%clk 0:00:19]} 60. a4 {[%clk 0:00:26]}  Kb7 {[%clk 0:00:20]} 61. a5 {[%clk 0:00:27]}  Ka8 {[%clk 0:00:21]} 62. Bc5 {[%clk 0:00:28]}  Kb7 {[%clk 0:00:22]} 63. a6+ {[%clk 0:00:28]}  Ka8 {[%clk 0:00:23]} 64. Kc6 {[%clk 0:00:29]}  Kb8 {[%clk 0:00:22]} 65. Kb6 {[%clk 0:00:30]}  Ka8 {[%clk 0:00:23]} 66. a7 {[%clk 0:00:30]} 1/2-1/2


[Site "https://www.chess.com"]

[Event "Titled Tuesday Blitz August 16 Late 2022"]
[White "Thiel, Thomas"]
[Black "Oro, Luis"]
[WhiteFideId "4615964"]
[BlackFideId "104094"]
[WhiteElo "2230"]
[BlackElo "2255"]
[Result "0-1"]
[Round "08"]
[TimeControl "180+1"]
[Date "2022.08.18"]
[WhiteClock "0:00:00"]
[BlackClock "0:00:00"]

1. e4 {[%clk 0:00:00]}  c5 {[%clk 0:00:00]} 2. Nc3 {[%clk 0:00:00]}  d6 {[%clk 0:00:00]} 3. f4 {[%clk 0:00:00]}  g6 {[%clk 0:00:00]} 4. Nf3 {[%clk 0:00:00]}  Bg7 {[%clk 0:00:00]} 5. Bc4 {[%clk 0:00:00]}  Nc6 {[%clk 0:00:00]} 6. O-O {[%clk 0:00:00]}  e6 {[%clk 0:00:00]} 7. f5 {[%clk 0:00:00]}  gxf5 {[%clk 0:00:00]} 8. d3 {[%clk 0:00:00]}  Nf6 {[%clk 0:00:00]} 9. Qe1 {[%clk 0:00:00]}  fxe4 {[%clk 0:00:00]} 10. dxe4 {[%clk 0:00:00]}  O-O {[%clk 0:00:00]} 11. Bg5 {[%clk 0:00:00]}  Na5 {[%clk 0:00:00]} 12. Be2 {[%clk 0:00:00]}  Qb6 {[%clk 0:00:00]} 13. Na4 {[%clk 0:00:00]}  Qc7 {[%clk 0:00:00]} 14. Qh4 {[%clk 0:00:00]}  Nd7 {[%clk 0:00:00]} 15. Bh6 {[%clk 0:00:00]}  Qd8 {[%clk 0:00:00]} 16. Ng5 {[%clk 0:00:00]}  Nf6 {[%clk 0:00:00]} 17. Bxg7 {[%clk 0:00:00]}  Kxg7 {[%clk 0:00:00]} 18. Rxf6 {[%clk 0:00:00]}  Kxf6 {[%clk 0:00:00]} 19. Rf1+ {[%clk 0:00:00]}  Ke7 {[%clk 0:00:00]} 20. Nxh7+ {[%clk 0:00:00]}  Kd7 {[%clk 0:00:00]} 21. Nxf8+ {[%clk 0:00:00]}  Qxf8 {[%clk 0:00:00]} 22. Bh5 {[%clk 0:00:00]}  f5 {[%clk 0:00:00]} 23. exf5 {[%clk 0:00:00]}  exf5 {[%clk 0:00:00]} 24. Qg5 {[%clk 0:00:00]}  Kc6 {[%clk 0:00:00]} 25. Bf3+ {[%clk 0:00:00]}  Kb5 {[%clk 0:00:00]} 26. Nc3+ {[%clk 0:00:00]}  Ka6 {[%clk 0:00:00]} 27. Be2+ {[%clk 0:00:00]}  c4 {[%clk 0:00:00]} 28. Qf4 {[%clk 0:00:00]}  Be6 {[%clk 0:00:00]} 29. b4 {[%clk 0:00:00]}  Qf6 {[%clk 0:00:00]} 30. Ne4 {[%clk 0:00:00]}  Qd4+ {[%clk 0:00:00]} 31. Qf2 {[%clk 0:00:00]}  Qxe4 {[%clk 0:00:00]} 32. Bf3 {[%clk 0:00:00]}  Qe5 {[%clk 0:00:00]} 33. bxa5 {[%clk 0:00:00]}  Qxa5 {[%clk 0:00:00]} 34. Qd4 {[%clk 0:00:00]}  Rd8 {[%clk 0:00:00]} 35. h4 {[%clk 0:00:00]}  Qc5 {[%clk 0:00:00]} 0-1


[Site "https://www.chess.com"]

[Event "Titled Tuesday Blitz August 16 Late 2022"]
[White "Tristan, Leonardo"]
[Black "Shimanov, Aleksandr"]
[WhiteFideId "113816"]
[BlackFideId "4198603"]
[WhiteElo "2404"]
[BlackElo "2605"]
[Result "0-1"]
[Round "08"]
[TimeControl "180+1"]
[Date "2022.08.16"]
[WhiteClock "0:00:01"]
[BlackClock "0:00:12"]

1. d4 {[%clk 0:03:00]}  Nf6 {[%clk 0:02:59]} 2. Nf3 {[%clk 0:03:01]}  d6 {[%clk 0:02:59]} 3. Bf4 {[%clk 0:02:50]}  Nh5 {[%clk 0:02:44]} 4. Bc1 {[%clk 0:02:50]}  Nf6 {[%clk 0:02:44]} 5. Bf4 {[%clk 0:02:50]}  g6 {[%clk 0:02:44]} 6. e3 {[%clk 0:02:41]}  Bg7 {[%clk 0:02:43]} 7. Be2 {[%clk 0:02:41]}  O-O {[%clk 0:02:43]} 8. O-O {[%clk 0:02:42]}  c5 {[%clk 0:02:40]} 9. c3 {[%clk 0:02:41]}  Qb6 {[%clk 0:02:35]} 10. Nbd2 {[%clk 0:02:41]}  Be6 {[%clk 0:02:26]} 11. dxc5 {[%clk 0:02:41]}  Qxc5 {[%clk 0:02:25]} 12. h3 {[%clk 0:02:37]}  Nc6 {[%clk 0:02:19]} 13. Qc2 {[%clk 0:02:36]}  Rac8 {[%clk 0:02:18]} 14. e4 {[%clk 0:02:34]}  d5 {[%clk 0:02:15]} 15. Rad1 {[%clk 0:02:20]}  dxe4 {[%clk 0:01:46]} 16. Nxe4 {[%clk 0:02:20]}  Nxe4 {[%clk 0:01:47]} 17. Qxe4 {[%clk 0:02:21]}  Bxa2 {[%clk 0:01:42]} 18. Be3 {[%clk 0:02:21]}  Qf5 {[%clk 0:01:33]} 19. Qa4 {[%clk 0:01:54]}  Qa5 {[%clk 0:01:07]} 20. Qxa5 {[%clk 0:01:39]}  Nxa5 {[%clk 0:01:08]} 21. Bxa7 {[%clk 0:01:32]}  Bc4 {[%clk 0:01:07]} 22. Rfe1 {[%clk 0:01:30]}  e6 {[%clk 0:01:05]} 23. Bd4 {[%clk 0:01:00]}  Rfd8 {[%clk 0:01:01]} 24. Bf1 {[%clk 0:00:44]}  Bxf1 {[%clk 0:00:58]} 25. Kxf1 {[%clk 0:00:45]}  Nc4 {[%clk 0:00:57]} 26. b3 {[%clk 0:00:31]}  Na5 {[%clk 0:00:54]} 27. b4 {[%clk 0:00:31]}  Nc4 {[%clk 0:00:51]} 28. Bxg7 {[%clk 0:00:25]}  Kxg7 {[%clk 0:00:51]} 29. Rxd8 {[%clk 0:00:25]}  Rxd8 {[%clk 0:00:51]} 30. Ke2 {[%clk 0:00:25]}  Ra8 {[%clk 0:00:50]} 31. Rd1 {[%clk 0:00:23]}  Ra2+ {[%clk 0:00:48]} 32. Nd2 {[%clk 0:00:23]}  f5 {[%clk 0:00:30]} 33. Ke1 {[%clk 0:00:23]}  Nb2 {[%clk 0:00:31]} 34. Rb1 {[%clk 0:00:23]}  Nd3+ {[%clk 0:00:31]} 35. Ke2 {[%clk 0:00:23]}  Ne5 {[%clk 0:00:31]} 36. Kd1 {[%clk 0:00:14]}  Nd3 {[%clk 0:00:29]} 37. Ke2 {[%clk 0:00:14]}  Nxf2 {[%clk 0:00:29]} 38. Ke3 {[%clk 0:00:15]}  f4+ {[%clk 0:00:24]} 39. Kxf2 {[%clk 0:00:12]}  Rxd2+ {[%clk 0:00:24]} 40. Kf3 {[%clk 0:00:13]}  e5 {[%clk 0:00:23]} 41. c4 {[%clk 0:00:11]}  Kf6 {[%clk 0:00:23]} 42. c5 {[%clk 0:00:08]}  Rc2 {[%clk 0:00:12]} 43. g4 {[%clk 0:00:05]}  Ke6 {[%clk 0:00:10]} 44. Ke4 {[%clk 0:00:04]}  Rc4+ {[%clk 0:00:10]} 45. Kd3 {[%clk 0:00:05]}  Kd5 {[%clk 0:00:10]} 46. h4 {[%clk 0:00:02]}  e4+ {[%clk 0:00:11]} 47. Kd2 {[%clk 0:00:02]}  Kd4 {[%clk 0:00:11]} 48. h5 {[%clk 0:00:02]}  e3+ {[%clk 0:00:12]} 49. Ke2 {[%clk 0:00:02]}  Ke4 {[%clk 0:00:12]} 50. hxg6 {[%clk 0:00:01]}  hxg6 {[%clk 0:00:13]} 51. Rc1 {[%clk 0:00:01]}  Rxc1 {[%clk 0:00:12]} 0-1


[Site "https://www.chess.com"]

[Event "Titled Tuesday Blitz August 16 Late 2022"]
[White "Wachinger, Guenther"]
[Black "Jorajuria Mendoza, Algol"]
[WhiteFideId "4604261"]
[BlackFideId "5128897"]
[WhiteElo "2212"]
[BlackElo "1600"]
[Result "1/2-1/2"]
[Round "08"]
[TimeControl "180+1"]
[Date "2022.08.18"]
[WhiteClock "0:00:00"]
[BlackClock "0:00:00"]

1. e4 {[%clk 0:00:00]}  c5 {[%clk 0:00:00]} 2. Nf3 {[%clk 0:00:00]}  Nc6 {[%clk 0:00:00]} 3. Bb5 {[%clk 0:00:00]}  g6 {[%clk 0:00:00]} 4. O-O {[%clk 0:00:00]}  Bg7 {[%clk 0:00:00]} 5. c3 {[%clk 0:00:00]}  Nf6 {[%clk 0:00:00]} 6. Re1 {[%clk 0:00:00]}  O-O {[%clk 0:00:00]} 7. d4 {[%clk 0:00:00]}  cxd4 {[%clk 0:00:00]} 8. cxd4 {[%clk 0:00:00]}  d5 {[%clk 0:00:00]} 9. e5 {[%clk 0:00:00]}  Ne4 {[%clk 0:00:00]} 10. Bxc6 {[%clk 0:00:00]}  bxc6 {[%clk 0:00:00]} 11. Be3 {[%clk 0:00:00]}  Rb8 {[%clk 0:00:00]} 12. Qc1 {[%clk 0:00:00]}  Qb6 {[%clk 0:00:00]} 13. b3 {[%clk 0:00:00]}  a5 {[%clk 0:00:00]} 14. Nc3 {[%clk 0:00:00]}  Nxc3 {[%clk 0:00:00]} 15. Qxc3 {[%clk 0:00:00]}  a4 {[%clk 0:00:00]} 16. bxa4 {[%clk 0:00:00]}  Ba6 {[%clk 0:00:00]} 17. Rec1 {[%clk 0:00:00]}  Rfc8 {[%clk 0:00:00]} 18. Bg5 {[%clk 0:00:00]}  e6 {[%clk 0:00:00]} 19. Be7 {[%clk 0:00:00]}  Bf8 {[%clk 0:00:00]} 20. Bxf8 {[%clk 0:00:00]}  Kxf8 {[%clk 0:00:00]} 21. Nd2 {[%clk 0:00:00]}  c5 {[%clk 0:00:00]} 22. dxc5 {[%clk 0:00:00]}  Qb4 {[%clk 0:00:00]} 23. Nb3 {[%clk 0:00:00]}  Bc4 {[%clk 0:00:00]} 24. Qh3 {[%clk 0:00:00]}  Kg7 {[%clk 0:00:00]} 25. Qh4 {[%clk 0:00:00]}  Qxa4 {[%clk 0:00:00]} 26. Qf6+ {[%clk 0:00:00]}  Kg8 {[%clk 0:00:00]} 27. Nd4 {[%clk 0:00:00]}  Rxc5 {[%clk 0:00:00]} 28. Nxe6 {[%clk 0:00:00]}  fxe6 {[%clk 0:00:00]} 29. Qxe6+ {[%clk 0:00:00]}  Kh8 {[%clk 0:00:00]} 30. Qf6+ {[%clk 0:00:00]}  Kg8 {[%clk 0:00:00]} 31. Qe6+ {[%clk 0:00:00]}  Kh8 {[%clk 0:00:00]} 32. Rab1 {[%clk 0:00:00]}  Rcb5 {[%clk 0:00:00]} 33. Qf6+ {[%clk 0:00:00]}  Kg8 {[%clk 0:00:00]} 34. Qe6+ {[%clk 0:00:00]}  Kh8 {[%clk 0:00:00]} 35. Qf6+ {[%clk 0:00:00]}  Kg8 {[%clk 0:00:00]} 36. Qe6+ {[%clk 0:00:00]}  Kh8 {[%clk 0:00:00]} 1/2-1/2


[Site "https://www.chess.com"]

[Event "Titled Tuesday Blitz August 16 Late 2022"]
[White "Wieczorek, Oskar"]
[Black "Bortnyk, Olexandr"]
[WhiteFideId "1133950"]
[BlackFideId "14120828"]
[WhiteElo "2302"]
[BlackElo "2723"]
[Result "0-1"]
[Round "08"]
[TimeControl "180+1"]
[Date "2022.08.16"]
[WhiteClock "0:00:02"]
[BlackClock "0:01:28"]

1. e4 {[%clk 0:03:00]}  Nf6 {[%clk 0:02:58]} 2. e5 {[%clk 0:02:57]}  Nd5 {[%clk 0:02:58]} 3. d4 {[%clk 0:02:57]}  d6 {[%clk 0:02:58]} 4. Nf3 {[%clk 0:02:57]}  dxe5 {[%clk 0:02:58]} 5. Nxe5 {[%clk 0:02:57]}  c6 {[%clk 0:02:59]} 6. Be2 {[%clk 0:02:58]}  Bf5 {[%clk 0:02:58]} 7. Nf3 {[%clk 0:02:58]}  Nd7 {[%clk 0:02:57]} 8. O-O {[%clk 0:02:52]}  e6 {[%clk 0:02:58]} 9. c4 {[%clk 0:02:30]}  N5f6 {[%clk 0:02:57]} 10. Nc3 {[%clk 0:02:28]}  Bd6 {[%clk 0:02:55]} 11. Nh4 {[%clk 0:02:27]}  Bg6 {[%clk 0:02:55]} 12. g3 {[%clk 0:02:24]}  O-O {[%clk 0:02:55]} 13. Be3 {[%clk 0:02:24]}  Qc7 {[%clk 0:02:53]} 14. Nxg6 {[%clk 0:02:10]}  hxg6 {[%clk 0:02:54]} 15. f4 {[%clk 0:02:11]}  Bb4 {[%clk 0:02:49]} 16. Qb3 {[%clk 0:01:50]}  Bxc3 {[%clk 0:02:42]} 17. Qxc3 {[%clk 0:01:50]}  Rfd8 {[%clk 0:02:40]} 18. Bf3 {[%clk 0:01:49]}  a5 {[%clk 0:02:38]} 19. Rfd1 {[%clk 0:01:44]}  a4 {[%clk 0:02:38]} 20. Kg2 {[%clk 0:01:44]}  Qa5 {[%clk 0:02:28]} 21. Rac1 {[%clk 0:01:41]}  Qf5 {[%clk 0:02:19]} 22. h3 {[%clk 0:01:31]}  Ne4 {[%clk 0:02:12]} 23. Qc2 {[%clk 0:01:19]}  Nd6 {[%clk 0:02:12]} 24. g4 {[%clk 0:00:58]}  Qf6 {[%clk 0:02:05]} 25. c5 {[%clk 0:00:42]}  Nb5 {[%clk 0:02:03]} 26. g5 {[%clk 0:00:36]}  Qe7 {[%clk 0:02:02]} 27. h4 {[%clk 0:00:30]}  Nc7 {[%clk 0:01:57]} 28. h5 {[%clk 0:00:16]}  gxh5 {[%clk 0:01:57]} 29. Bxh5 {[%clk 0:00:13]}  Nd5 {[%clk 0:01:57]} 30. Bd2 {[%clk 0:00:12]}  f5 {[%clk 0:01:46]} 31. Rh1 {[%clk 0:00:11]}  Nf8 {[%clk 0:01:45]} 32. Bf3 {[%clk 0:00:11]}  Ng6 {[%clk 0:01:45]} 33. Kg3 {[%clk 0:00:10]}  Qc7 {[%clk 0:01:45]} 34. Bxd5 {[%clk 0:00:10]}  Rxd5 {[%clk 0:01:46]} 35. Be3 {[%clk 0:00:10]}  Rxd4 {[%clk 0:01:43]} 36. Bxd4 {[%clk 0:00:09]}  Qxf4+ {[%clk 0:01:43]} 37. Kg2 {[%clk 0:00:09]}  Qxd4 {[%clk 0:01:38]} 38. Qc4 {[%clk 0:00:09]}  Qd2+ {[%clk 0:01:32]} 39. Kg3 {[%clk 0:00:04]}  Qe3+ {[%clk 0:01:28]} 40. Kh2 {[%clk 0:00:02]}  Qf2+ {[%clk 0:01:28]} 0-1


[Site "https://www.chess.com"]

[Event "Titled Tuesday Blitz August 16 Late 2022"]
[White "Wu, Rochelle"]
[Black "Kalavannan, Koby"]
[WhiteFideId "30908132"]
[BlackFideId "425753"]
[WhiteElo "2168"]
[BlackElo "1927"]
[Result "0-1"]
[Round "08"]
[TimeControl "180+1"]
[Date "2022.08.16"]
[WhiteClock "0:00:12"]
[BlackClock "0:01:01"]

1. b3 {[%clk 0:03:00]}  e5 {[%clk 0:02:58]} 2. Bb2 {[%clk 0:03:01]}  d6 {[%clk 0:02:59]} 3. e3 {[%clk 0:03:00]}  Nf6 {[%clk 0:02:58]} 4. g3 {[%clk 0:03:00]}  Bg4 {[%clk 0:02:56]} 5. f3 {[%clk 0:02:52]}  Be6 {[%clk 0:02:54]} 6. Bg2 {[%clk 0:02:52]}  Nc6 {[%clk 0:02:53]} 7. Ne2 {[%clk 0:02:52]}  d5 {[%clk 0:02:53]} 8. d4 {[%clk 0:02:49]}  e4 {[%clk 0:02:48]} 9. Nf4 {[%clk 0:02:48]}  exf3 {[%clk 0:02:47]} 10. Bxf3 {[%clk 0:02:49]}  Bf5 {[%clk 0:02:46]} 11. Nd2 {[%clk 0:02:47]}  Nb4 {[%clk 0:02:18]} 12. O-O {[%clk 0:02:31]}  Nxc2 {[%clk 0:02:16]} 13. Rc1 {[%clk 0:02:31]}  Nb4 {[%clk 0:02:16]} 14. Bxd5 {[%clk 0:01:52]}  Nbxd5 {[%clk 0:02:11]} 15. Nxd5 {[%clk 0:01:51]}  Qxd5 {[%clk 0:02:10]} 16. e4 {[%clk 0:01:04]}  Nxe4 {[%clk 0:01:37]} 17. Nc4 {[%clk 0:00:34]}  Bh3 {[%clk 0:01:14]} 18. Re1 {[%clk 0:00:19]}  Bb4 {[%clk 0:01:10]} 19. Ne3 {[%clk 0:00:12]}  Qd7 {[%clk 0:01:01]} 0-1


[Site "https://www.chess.com"]

[Event "Titled Tuesday Blitz August 16 Late 2022"]
[White "Zenin, Dmitry"]
[Black "Karaev, Seit-Amet"]
[WhiteFideId "4127897"]
[BlackFideId "4169549"]
[WhiteElo "2215"]
[BlackElo "2272"]
[Result "0-1"]
[Round "08"]
[TimeControl "180+1"]
[Date "2022.08.18"]
[WhiteClock "0:00:00"]
[BlackClock "0:00:00"]

1. d4 {[%clk 0:00:00]}  Nf6 {[%clk 0:00:00]} 2. c4 {[%clk 0:00:00]}  c5 {[%clk 0:00:00]} 3. d5 {[%clk 0:00:00]}  b5 {[%clk 0:00:00]} 4. cxb5 {[%clk 0:00:00]}  a6 {[%clk 0:00:00]} 5. bxa6 {[%clk 0:00:00]}  Bxa6 {[%clk 0:00:00]} 6. Nc3 {[%clk 0:00:00]}  Qa5 {[%clk 0:00:00]} 7. Bd2 {[%clk 0:00:00]}  g6 {[%clk 0:00:00]} 8. Nf3 {[%clk 0:00:00]}  Bg7 {[%clk 0:00:00]} 9. g3 {[%clk 0:00:00]}  O-O {[%clk 0:00:00]} 10. Bg2 {[%clk 0:00:00]}  d6 {[%clk 0:00:00]} 11. O-O {[%clk 0:00:00]}  Nbd7 {[%clk 0:00:00]} 12. Qc2 {[%clk 0:00:00]}  Rfb8 {[%clk 0:00:00]} 13. Rab1 {[%clk 0:00:00]}  Ng4 {[%clk 0:00:00]} 14. h3 {[%clk 0:00:00]}  Nge5 {[%clk 0:00:00]} 15. Nxe5 {[%clk 0:00:00]}  Nxe5 {[%clk 0:00:00]} 16. b3 {[%clk 0:00:00]}  Qa3 {[%clk 0:00:00]} 17. Bc1 {[%clk 0:00:00]}  Qa5 {[%clk 0:00:00]} 18. Bd2 {[%clk 0:00:00]}  Qa3 {[%clk 0:00:00]} 19. Bc1 {[%clk 0:00:00]}  Qb4 {[%clk 0:00:00]} 20. Bd2 {[%clk 0:00:00]}  c4 {[%clk 0:00:00]} 21. Ne4 {[%clk 0:00:00]}  cxb3 {[%clk 0:00:00]} 22. axb3 {[%clk 0:00:00]}  Qa3 {[%clk 0:00:00]} 23. Bg5 {[%clk 0:00:00]}  Kf8 {[%clk 0:00:00]} 24. Rfc1 {[%clk 0:00:00]}  h6 {[%clk 0:00:00]} 25. Be3 {[%clk 0:00:00]}  Rc8 {[%clk 0:00:00]} 26. Qd1 {[%clk 0:00:00]}  Rxc1 {[%clk 0:00:00]} 27. Rxc1 {[%clk 0:00:00]}  Rb8 {[%clk 0:00:00]} 28. Rb1 {[%clk 0:00:00]}  f5 {[%clk 0:00:00]} 29. Nd2 {[%clk 0:00:00]}  Qa2 {[%clk 0:00:00]} 30. Bf1 {[%clk 0:00:00]}  Nd7 {[%clk 0:00:00]} 31. Rc1 {[%clk 0:00:00]}  Qa5 {[%clk 0:00:00]} 32. Rc6 {[%clk 0:00:00]}  Bb7 {[%clk 0:00:00]} 33. Rc2 {[%clk 0:00:00]}  Qxd5 {[%clk 0:00:00]} 34. f3 {[%clk 0:00:00]}  Ra8 {[%clk 0:00:00]} 35. Qc1 {[%clk 0:00:00]}  Ra1 {[%clk 0:00:00]} 0-1


[Site "https://www.chess.com"]

[Event "Titled Tuesday Blitz August 16 Late 2022"]
[White "Zeynalov, Farid"]
[Black "Kujawski, Adam"]
[WhiteFideId "13402250"]
[BlackFideId "1100920"]
[WhiteElo "2278"]
[BlackElo "1972"]
[Result "0-1"]
[Round "08"]
[TimeControl "180+1"]
[Date "2022.08.18"]
[WhiteClock "0:00:00"]
[BlackClock "0:00:00"]

1. d4 {[%clk 0:00:00]}  Nf6 {[%clk 0:00:00]} 2. c4 {[%clk 0:00:00]}  e6 {[%clk 0:00:00]} 3. Nf3 {[%clk 0:00:00]}  c5 {[%clk 0:00:00]} 4. d5 {[%clk 0:00:00]}  d6 {[%clk 0:00:00]} 5. Nc3 {[%clk 0:00:00]}  g6 {[%clk 0:00:00]} 6. dxe6 {[%clk 0:00:00]}  Bxe6 {[%clk 0:00:00]} 7. e4 {[%clk 0:00:00]}  Bg7 {[%clk 0:00:00]} 8. e5 {[%clk 0:00:00]}  dxe5 {[%clk 0:00:00]} 9. Qxd8+ {[%clk 0:00:00]}  Kxd8 {[%clk 0:00:00]} 10. Nxe5 {[%clk 0:00:00]}  Nbd7 {[%clk 0:00:00]} 11. Bf4 {[%clk 0:00:00]}  Nxe5 {[%clk 0:00:00]} 12. Bxe5 {[%clk 0:00:00]}  Ke7 {[%clk 0:00:00]} 13. O-O-O {[%clk 0:00:00]}  Rhd8 {[%clk 0:00:00]} 14. Be2 {[%clk 0:00:00]}  Ne8 {[%clk 0:00:00]} 15. Bg3 {[%clk 0:00:00]}  Rxd1+ {[%clk 0:00:00]} 16. Rxd1 {[%clk 0:00:00]}  Rd8 {[%clk 0:00:00]} 17. Nd5+ {[%clk 0:00:00]}  Bxd5 {[%clk 0:00:00]} 18. cxd5 {[%clk 0:00:00]}  Nd6 {[%clk 0:00:00]} 19. Bxd6+ {[%clk 0:00:00]}  Kxd6 {[%clk 0:00:00]} 20. f4 {[%clk 0:00:00]}  Re8 {[%clk 0:00:00]} 21. Bf3 {[%clk 0:00:00]}  Bd4 {[%clk 0:00:00]} 22. Kc2 {[%clk 0:00:00]}  b5 {[%clk 0:00:00]} 23. b4 {[%clk 0:00:00]}  f5 {[%clk 0:00:00]} 24. bxc5+ {[%clk 0:00:00]}  Bxc5 {[%clk 0:00:00]} 25. Rd3 {[%clk 0:00:00]}  Re3 {[%clk 0:00:00]} 26. Rd1 {[%clk 0:00:00]}  a5 {[%clk 0:00:00]} 27. Kd2 {[%clk 0:00:00]}  Ra3 {[%clk 0:00:00]} 28. Ra1 {[%clk 0:00:00]}  Bd4 {[%clk 0:00:00]} 29. Rb1 {[%clk 0:00:00]}  b4 {[%clk 0:00:00]} 30. Kc2 {[%clk 0:00:00]}  Rxa2+ {[%clk 0:00:00]} 31. Kd3 {[%clk 0:00:00]}  Bc3 {[%clk 0:00:00]} 32. Kc4 {[%clk 0:00:00]}  a4 {[%clk 0:00:00]} 33. h4 {[%clk 0:00:00]}  a3 {[%clk 0:00:00]} 34. g4 {[%clk 0:00:00]}  Rf2 {[%clk 0:00:00]} 35. Bd1 {[%clk 0:00:00]}  a2 {[%clk 0:00:00]} 36. Rc1 {[%clk 0:00:00]}  a1=Q {[%clk 0:00:00]} 37. Rxa1 {[%clk 0:00:00]}  Bxa1 {[%clk 0:00:00]} 38. gxf5 {[%clk 0:00:00]}  gxf5 {[%clk 0:00:00]} 39. h5 {[%clk 0:00:00]}  Rxf4+ {[%clk 0:00:00]} 40. Kb3 {[%clk 0:00:00]}  Bc3 {[%clk 0:00:00]} 41. h6 {[%clk 0:00:00]}  Kxd5 {[%clk 0:00:00]} 42. Bc2 {[%clk 0:00:00]}  Ke5 {[%clk 0:00:00]} 43. Ka4 {[%clk 0:00:00]}  Rh4 {[%clk 0:00:00]} 44. Kb3 {[%clk 0:00:00]}  Rxh6 {[%clk 0:00:00]} 45. Bd3 {[%clk 0:00:00]}  Rd6 {[%clk 0:00:00]} 46. Bc4 {[%clk 0:00:00]}  h5 {[%clk 0:00:00]} 47. Kc2 {[%clk 0:00:00]}  h4 {[%clk 0:00:00]} 48. Bf1 {[%clk 0:00:00]}  f4 {[%clk 0:00:00]} 49. Bh3 {[%clk 0:00:00]}  f3 {[%clk 0:00:00]} 50. Kb1 {[%clk 0:00:00]}  Kf4 {[%clk 0:00:00]} 51. Kc2 {[%clk 0:00:00]}  Kg3 {[%clk 0:00:00]} 52. Bf1 {[%clk 0:00:00]}  h3 {[%clk 0:00:00]} 53. Bxh3 {[%clk 0:00:00]}  Kxh3 {[%clk 0:00:00]} 54. Kb3 {[%clk 0:00:00]}  f2 {[%clk 0:00:00]} 55. Ka2 {[%clk 0:00:00]}  f1=Q {[%clk 0:00:00]} 56. Kb3 {[%clk 0:00:00]}  Qf7+ {[%clk 0:00:00]} 57. Ka4 {[%clk 0:00:00]}  Qa7+ {[%clk 0:00:00]} 58. Kb3 {[%clk 0:00:00]}  Qa3+ {[%clk 0:00:00]} 59. Kc4 {[%clk 0:00:00]}  Qa2+ {[%clk 0:00:00]} 60. Kb5 {[%clk 0:00:00]}  Rd5+ {[%clk 0:00:00]} 61. Kb6 {[%clk 0:00:00]}  Qa5+ {[%clk 0:00:00]} 62. Kb7 {[%clk 0:00:00]}  Qb5+ {[%clk 0:00:00]} 63. Kc8 {[%clk 0:00:00]}  Qc6+ {[%clk 0:00:00]} 64. Kb8 {[%clk 0:00:00]}  Rd8+ {[%clk 0:00:00]} 65. Ka7 {[%clk 0:00:00]}  Ra8# {[%clk 0:00:00]} 0-1


[Site "https://www.chess.com"]